bitfinex/quotes_SOLUSD_20250118
["timestamp","ask_amount","ask_price","bid_price","bid_amount"]
[1737173231705,16.83471417,223.89,223.81,16.83471417]
[1737173232015,0.83760354,223.98,223.8,4.4682]
[1737173232389,16.83471417,223.94,223.85,16.83471417]
[1737173232616,16.83471417,223.92,223.83,16.83471417]
[1737173232994,0.83754212,223.95,223.84,4.4674]
[1737173232995,16.83471417,223.9,223.84,4.4674]
[1737173233209,16.83471417,223.88,223.79,21.30311417]
[1737173233602,16.83471417,223.94,223.85,16.83471417]
[1737173233988,16.83471417,223.92,223.83,16.83471417]
[1737173234814,0.03,223.99,223.91,16.83471417]
[1737173235017,0.03,223.99,223.94,16.82778722]
[1737173235902,0.03,223.99,223.96,16.82778722]
[1737173236420,0.03,223.99,223.95,16.82778722]
[1737173236717,0.03,223.99,223.97,16.82778722]
[1737173236914,0.03,223.99,223.98,4.4646]
[1737173237796,0.0001,223.99,223.98,4.4646]
[1737173239417,0.03,224.07,224.01,20.0]
[1737173239630,0.03,224.07,224.06,16.82778722]
[1737173241225,16.82778722,224.17,224.08,16.82778722]
[1737173241397,16.82778722,224.21,224.12,16.82778722]
[1737173241592,0.03,224.22,224.08,16.82778722]
[1737173241824,16.82778722,224.13,224.04,16.82778722]
[1737173242115,5.32659358,224.22,224.06,16.82778722]
[1737173242301,16.82778722,224.16,224.06,16.82778722]
[1737173242501,0.03,224.07,224.06,16.82778722]
[1737173242820,0.03,224.07,224.02,4.4637]
[1737173243194,16.82778722,224.04,223.96,16.890787]
[1737173243400,16.82778722,224.0,223.96,0.063]
[1737173243633,16.79855825,224.02,223.96,4.528]
[1737173243811,16.82778722,224.04,223.96,4.528]
[1737173244124,16.82778722,224.06,223.99,16.82778722]
[1737173244419,0.03,224.07,223.96,4.528]
[1737173244796,0.03,224.07,223.99,16.82778722]
[1737173245020,16.82778722,224.0,223.96,0.063]
[1737173245306,16.82778722,224.02,223.96,4.528]
[1737173246019,16.82778722,224.04,223.96,4.528]
[1737173246220,16.82778722,224.06,223.97,16.82778722]
[1737173246630,0.03,224.07,223.96,15.6907]
[1737173246631,16.82778722,224.04,223.96,4.528]
[1737173246929,0.03,224.07,224.03,16.82778722]
[1737173247315,0.03,224.07,224.03,21.29128722]
[1737173247529,0.03,224.07,224.01,16.82778722]
[1737173247915,0.03,224.07,224.05,16.82778722]
[1737173248405,0.03,224.07,224.03,16.82778722]
[1737173248929,0.03,224.07,224.05,16.82778722]
[1737173249127,0.03,224.07,224.03,16.82778722]
[1737173249429,0.03,224.07,224.05,16.82778722]
[1737173249931,0.03,224.07,224.03,16.82778722]
[1737173250130,0.00077165,224.07,224.06,16.82778722]
[1737173251234,0.00077165,224.07,224.06,21.29078722]
[1737173252146,16.82855887,224.07,223.96,0.063]
[1737173252345,16.82778722,223.97,223.96,0.063]
[1737173252841,20.0,223.94,223.84,6.66991674]
[1737173253025,16.82778722,223.87,223.84,6.66991674]
[1737173253527,0.83772644,223.93,223.76,4.469]
[1737173253528,27.39162403,223.85,223.76,4.469]
[1737173253731,27.39162403,223.85,223.76,31.86062403]
[1737173253930,27.39162403,223.85,223.73,0.063]
[1737173253931,27.39162403,223.77,223.73,0.063]
[1737173254240,13.20198141,223.85,223.66,26.8263]
[1737173254536,13.20198141,223.81,223.73,13.24843494]
[1737173254837,13.20198141,223.85,223.73,13.24843494]
[1737173255140,13.20198141,223.85,223.67,7.37753092]
[1737173255326,27.39162403,223.81,223.74,27.39162403]
[1737173255510,27.39162403,223.77,223.68,45.06420603]
[1737173255713,27.39162403,223.73,223.67,6.56]
[1737173255938,27.39162403,223.73,223.65,4.4712]
[1737173256131,27.39162403,223.76,223.65,4.4712]
[1737173256330,0.838135,223.75,223.56,4.473]
[1737173256530,27.39162403,223.67,223.57,27.45462403]
[1737173257022,27.39162403,223.61,223.57,0.063]
[1737173257228,13.20198141,223.63,223.6,27.39162403]
[1737173257751,13.20198141,223.62,223.6,20.0]
[1737173257923,13.20198141,223.69,223.57,22.2778]
[1737173258240,13.20198141,223.69,223.58,0.81786001]
[1737173258448,13.20198141,223.69,223.68,27.39162403]
[1737173258642,13.20198141,223.69,223.62,27.39162403]
[1737173258841,27.39162403,223.76,223.67,27.39162403]
[1737173259141,27.39162403,223.72,223.63,27.39162403]
[1737173259651,27.39162403,223.75,223.66,27.39162403]
[1737173259825,27.39162403,223.73,223.6,6.56]
[1737173260024,27.39162403,223.75,223.66,27.39162403]
[1737173260225,27.39162403,223.73,223.66,27.39162403]
[1737173260550,27.39162403,223.67,223.59,4.4724]
[1737173260728,27.39162403,223.65,223.59,4.4724]
[1737173260934,27.39162403,223.69,223.6,27.39162403]
[1737173261126,27.39162403,223.67,223.59,4.4724]
[1737173261529,27.39162403,223.69,223.6,27.39162403]
[1737173261741,27.39162403,223.61,223.57,0.063]
[1737173262051,27.39162403,223.6,223.58,4.4726]
[1737173262249,32.69939929,223.74,223.58,4.4726]
[1737173262250,0.83827526,223.74,223.58,4.4726]
[1737173262441,27.39162403,223.66,223.59,8.67100985]
[1737173262636,27.39162403,223.64,223.59,7.85318642]
[1737173263032,0.83835844,223.8,223.61,27.39162403]
[1737173263229,0.83835844,223.8,223.62,7.85318642]
[1737173263547,20.0,223.76,223.62,7.85318642]
[1737173263854,20.83843113,223.75,223.57,0.063]
[1737173264035,20.83843113,223.75,223.57,4.5357]
[1737173264235,27.39162403,223.61,223.57,12.38888642]
[1737173265056,27.39162403,223.63,223.58,7.85318642]
[1737173265352,27.39162403,223.69,223.6,27.39162403]
[1737173265530,27.39162403,223.69,223.61,7.85318642]
[1737173265733,27.39162403,223.69,223.61,12.32518642]
[1737173265951,27.39162403,223.69,223.61,23.50528642]
[1737173266163,27.39162403,223.71,223.61,23.50528642]
[1737173266341,27.39162403,223.75,223.66,27.39162403]
[1737173266536,27.39162403,223.75,223.67,14.41318642]
[1737173266858,27.39162403,223.79,223.7,47.39162403]
[1737173267154,27.39162403,223.79,223.71,7.85318642]
[1737173267534,27.39162403,223.77,223.71,7.85318642]
[1737173267839,27.39162403,223.72,223.71,12.32318642]
[1737173268260,27.39162403,223.85,223.71,12.32318642]
[1737173268441,27.39162403,223.72,223.71,7.85318642]
[1737173268641,27.39162403,223.72,223.71,12.32318642]
[1737173269358,27.39162403,223.85,223.73,20.0]
[1737173269556,27.39162403,223.86,223.77,27.39162403]
[1737173269747,27.39162403,223.86,223.8,20.0]
[1737173269940,27.39162403,223.86,223.81,7.85318642]
[1737173270142,27.39162403,223.88,223.81,7.85318642]
[1737173270360,27.39162403,223.9,223.84,20.0]
[1737173270545,27.39162403,223.9,223.85,14.41318642]
[1737173270934,0.83726209,224.06,223.88,20.0]
[1737173271141,0.00077165,224.07,223.98,27.39162403]
[1737173271339,27.39162403,224.09,224.0,27.39162403]
[1737173271555,27.39162403,224.18,224.01,7.85318642]
[1737173271556,27.39162403,224.1,224.01,7.85318642]
[1737173271762,27.39162403,224.1,224.02,22.1835]
[1737173271962,27.39162403,224.08,224.02,11.0238]
[1737173272171,27.39162403,224.16,224.07,27.39162403]
[1737173272361,27.39162403,224.16,224.08,7.85318642]
[1737173272750,26.89162403,224.16,224.08,7.85318642]
[1737173272962,27.39162403,224.14,224.08,7.85318642]
[1737173273467,27.39162403,224.1,224.02,22.1835]
[1737173273671,27.39162403,224.1,224.03,7.85318642]
[1737173274174,27.39162403,224.12,224.04,15.6221]
[1737173274359,27.39162403,224.06,224.04,17.837445]
[1737173274562,27.39162403,224.06,224.02,4.4638]
[1737173274762,27.39162403,224.04,224.02,4.4638]
[1737173275069,27.39162403,224.09,224.02,4.4638]
[1737173275260,27.39162403,224.07,224.02,11.88365309]
[1737173275455,0.03,224.22,224.03,7.41985309]
[1737173275679,27.39162403,224.12,224.04,27.39162403]
[1737173276174,27.39162403,224.12,224.04,4.4634]
[1737173276853,27.39162403,224.12,224.04,15.6221]
[1737173277874,27.39162403,224.1,224.04,15.6221]
[1737173278362,27.39162403,224.14,224.04,43.01372403]
[1737173278577,27.39162403,224.12,224.04,50.08178268]
[1737173279351,27.39162403,224.1,224.04,22.69015865]
[1737173279556,27.39162403,224.08,224.04,15.6221]
[1737173280472,27.39162403,224.06,224.04,4.4634]
[1737173280771,27.39162403,224.08,224.04,4.4634]
[1737173280980,27.39162403,224.06,224.04,4.4634]
[1737173281570,27.39162403,224.06,224.0,17.840605]
[1737173281777,1.0,224.25,224.05,54.78324806]
[1737173281954,27.39162403,224.13,224.06,7.88416658]
[1737173282159,5.4593,224.25,224.06,7.06805865]
[1737173282160,0.83640249,224.24,224.06,7.06805865]
[1737173282482,4.4597,224.23,224.07,4.4628]
[1737173282780,0.83665256,224.22,224.07,4.4628]
[1737173283274,27.39162403,224.08,224.07,4.4628]
[1737173283580,27.39162403,224.18,224.07,15.62]
[1737173283769,27.39162403,224.12,224.07,15.62]
[1737173283972,27.39162403,224.12,224.07,22.68805865]
[1737173284178,27.39162403,224.09,224.08,7.06805865]
[1737173284363,27.39162403,224.09,224.07,15.62]
[1737173284963,27.39162403,224.09,224.07,4.4628]
[1737173289272,27.39162403,224.09,224.05,4.4631]
[1737173289479,27.39162403,224.07,224.05,4.4631]
[1737173289669,27.39162403,224.07,224.01,4.464]
[1737173289986,27.39162403,224.03,224.01,4.464]
[1737173290287,27.39162403,224.11,224.05,20.0]
[1737173290494,27.39162403,224.11,224.05,27.06805865]
[1737173290986,27.39162403,224.13,224.06,7.06805865]
[1737173291183,27.39162403,224.13,224.09,20.0]
[1737173291389,27.39162403,224.13,224.07,15.62]
[1737173291581,27.39162403,224.13,224.07,22.68805865]
[1737173291786,27.39162403,224.15,224.11,20.0]
[1737173291982,27.39162403,224.29,224.11,27.06805865]
[1737173292289,27.39162403,224.2,224.12,27.06805865]
[1737173292878,27.39162403,224.22,224.12,27.06805865]
[1737173293390,27.39162403,224.22,224.16,20.0]
[1737173293695,27.39162403,224.22,224.13,40.87162403]
[1737173293696,27.39162403,224.24,224.2,20.0]
[1737173293888,27.39162403,224.26,224.21,20.0]
[1737173294191,27.39162403,224.33,224.28,20.0]
[1737173294375,10.6387,224.45,224.28,20.0]
[1737173294376,27.39162403,224.36,224.3,20.0]
[1737173294698,14.60505447,224.55,224.3,20.0]
[1737173294699,27.39162403,224.53,224.42,33.48]
[1737173294992,27.39162403,224.53,224.46,33.48]
[1737173295167,6.81478023,224.57,224.52,27.39162403]
[1737173295372,6.81478023,224.57,224.55,27.39162403]
[1737173295567,53.79069261,224.64,224.55,27.39162403]
[1737173295568,27.39162403,224.64,224.55,27.39162403]
[1737173295794,27.39162403,224.73,224.53,7.06805865]
[1737173295795,27.39162403,224.62,224.53,34.45968268]
[1737173296011,27.39162403,224.62,224.53,27.39162403]
[1737173296413,0.83460197,224.72,224.61,27.39162403]
[1737173296715,6.81478023,224.8,224.61,27.39162403]
[1737173296716,27.39162403,224.8,224.71,27.39162403]
[1737173296899,27.65850403,224.82,224.71,27.39162403]
[1737173297294,27.39162403,224.8,224.72,20.0]
[1737173297483,0.26688,224.82,224.72,20.0]
[1737173297484,27.65850403,224.82,224.72,20.0]
[1737173297684,27.65850403,224.82,224.7,27.39162403]
[1737173297887,27.39162403,224.79,224.72,20.0]
[1737173298100,27.39162403,224.81,224.74,20.0]
[1737173298499,0.26688,224.82,224.75,27.39162403]
[1737173298682,0.26688,224.82,224.75,28.20522644]
[1737173299106,0.26688,224.82,224.76,11.0287]
[1737173299317,30.98216641,225.16,224.88,33.48]
[1737173299609,30.98216641,225.16,224.99,27.39162403]
[1737173299610,27.39162403,225.1,224.99,27.39162403]
[1737173299816,26.39162403,225.12,225.04,20.0]
[1737173299992,12.08774741,225.22,225.04,20.0]
[1737173300193,27.39162403,225.1,225.04,20.0]
[1737173300516,27.39162403,225.12,225.05,20.0]
[1737173300814,27.39162403,225.12,224.91,1.40781083]
[1737173300815,27.39162403,225.06,224.92,27.39162403]
[1737173301109,27.39162403,224.98,224.92,6.54]
[1737173301299,221.5,225.2,224.69,59.0687]
[1737173301300,0.83328898,225.05,224.69,59.0687]
[1737173301502,20.0,225.09,224.7,12.899349]
[1737173301808,0.83375763,225.08,224.71,7.33374724]
[1737173302007,0.83375763,225.08,224.72,7.28502801]
[1737173302308,27.39162403,224.86,224.76,27.39162403]
[1737173302519,27.39162403,224.88,224.78,27.39162403]
[1737173302691,27.39162403,224.86,224.77,7.28502801]
[1737173302893,27.39162403,224.84,224.77,7.28502801]
[1737173303105,27.39162403,224.82,224.77,7.28502801]
[1737173303308,27.39162403,224.84,224.77,7.28502801]
[1737173303492,27.39162403,224.82,224.77,7.28502801]
[1737173303696,0.83393962,225.01,224.8,27.39162403]
[1737173303902,27.39162403,224.89,224.78,33.91162403]
[1737173304118,27.39162403,224.89,224.81,20.0]
[1737173304410,27.39162403,224.94,224.87,20.0]
[1737173304920,0.8334906,225.12,224.9,27.39162403]
[1737173305100,27.39162403,225.02,224.92,27.39162403]
[1737173305414,27.39162403,225.0,224.91,7.26697246]
[1737173305617,27.39162403,225.0,224.95,20.0]
[1737173305915,0.03,225.05,224.96,6.52]
[1737173306102,27.39162403,224.99,224.96,6.52]
[1737173306297,27.39162403,224.99,224.98,20.0]
[1737173306499,27.39162403,225.03,224.96,6.52]
[1737173306814,27.39162403,225.17,224.99,27.39162403]
[1737173306815,27.39162403,225.09,224.99,27.39162403]
[1737173307113,27.39162403,225.09,225.0,8.04355976]
[1737173307616,27.39162403,225.11,225.01,27.39162403]
[1737173307805,27.39162403,225.13,225.03,27.39162403]
[1737173307993,27.39162403,225.09,225.04,6.52]
[1737173308394,27.39162403,225.05,225.04,6.52]
[1737173309002,27.39162403,225.07,225.04,6.52]
[1737173309929,27.39162403,225.09,225.04,13.75086135]
[1737173310102,27.39162403,225.09,225.08,20.0]
[1737173310420,0.83279062,225.31,225.09,20.0]
[1737173310624,27.39162403,225.16,225.1,7.23086135]
[1737173310996,27.39162403,225.14,225.1,7.23086135]
[1737173311197,0.8325388,225.27,225.1,7.23086135]
[1737173311397,27.39162403,225.14,225.1,7.23086135]
[1737173311794,28.22423658,225.28,225.1,7.23086135]
[1737173312030,27.39162403,225.12,225.1,7.23086135]
[1737173312320,27.39162403,225.14,225.1,7.23086135]
[1737173312521,27.39162403,225.14,225.13,20.0]
[1737173312708,27.39162403,225.16,225.13,20.0]
[1737173312908,27.39162403,225.14,225.1,7.23086135]
[1737173313215,0.83253952,225.27,225.13,6.52]
[1737173313397,0.83253952,225.27,225.1,7.23086135]
[1737173313599,20.0,225.25,225.05,6.52]
[1737173313816,4.4399,225.23,225.05,13.75086135]
[1737173314123,27.39162403,225.07,225.05,6.52]
[1737173314498,27.39162403,225.07,225.0,7.23086135]
[1737173314499,27.39162403,225.06,225.0,7.23086135]
[1737173314705,27.39162403,225.01,224.96,7.23086135]
[1737173315223,27.39162403,225.01,224.97,24.98871135]
[1737173316301,27.39162403,225.01,224.98,6.52]
[1737173316494,27.39162403,225.01,225.0,20.0]
[1737173316798,27.39162403,225.06,225.01,20.0]
[1737173317009,27.39162403,225.06,225.02,7.23086135]
[1737173317208,27.39162403,225.04,224.99,7.23086135]
[1737173317419,27.39162403,225.08,225.01,7.23086135]
[1737173317626,27.39162403,225.08,225.04,20.0]
[1737173318126,27.39162403,225.12,225.05,20.0]
[1737173318703,27.42162403,225.16,225.09,20.0]
[1737173318902,0.03,225.16,225.13,20.0]
[1737173319105,27.42162403,225.16,225.11,6.52]
[1737173319296,4.4396,225.25,225.11,6.52]
[1737173319297,0.83268653,225.25,225.11,6.52]
[1737173319502,0.83267392,225.38,225.14,27.39162403]
[1737173319710,27.39162403,225.23,225.14,27.39162403]
[1737173319925,27.39162403,225.25,225.15,7.23086135]
[1737173320111,27.39162403,225.25,225.18,20.0]
[1737173320312,27.39162403,225.21,225.18,20.0]
[1737173320515,38.48372403,225.39,225.18,27.23086135]
[1737173320516,27.39162403,225.25,225.18,27.23086135]
[1737173320707,27.39162403,225.23,225.19,17.748242]
[1737173321002,27.39162403,225.28,225.22,20.0]
[1737173321701,12.9549,225.43,225.19,24.97910335]
[1737173321702,0.83222896,225.48,225.3,20.0]
[1737173321923,27.39162403,225.4,225.34,20.0]
[1737173322126,27.39162403,225.38,225.31,13.75086135]
[1737173322328,27.39162403,225.38,225.31,6.52]
[1737173322534,27.39162403,225.36,225.31,6.52]
[1737173322742,27.39162403,225.32,225.31,6.52]
[1737173323200,27.39162403,225.32,225.23,0.8118685]
[1737173323402,27.39162403,225.3,225.23,0.8118685]
[1737173323810,27.39162403,225.3,225.24,20.0]
[1737173324010,27.39162403,225.26,225.23,0.8118685]
[1737173324211,2.6736,225.36,225.23,0.8118685]
[1737173324212,27.39162403,225.25,225.23,0.8118685]
[1737173325203,12.9549,225.24,225.19,14.920442]
[1737173325408,82.17487209,225.2,224.89,27.39162403]
[1737173325630,27.39162403,225.01,224.93,17.767759]
[1737173325933,27.39162403,225.17,224.97,27.45462403]
[1737173326107,27.39162403,225.17,225.0,27.39162403]
[1737173326309,27.39162403,225.08,224.99,34.01162403]
[1737173326524,27.39162403,225.1,224.99,34.01162403]
[1737173326908,27.39162403,225.1,224.99,20.1]
[1737173327109,27.39162403,225.1,225.0,40.87162403]
[1737173327510,27.39162403,225.02,224.97,0.063]
[1737173327710,27.39162403,224.98,224.97,0.063]
[1737173328231,27.39162403,224.98,224.8,6.62]
[1737173328429,27.39162403,224.81,224.74,0.063]
[1737173328729,27.39162403,224.78,224.74,17.844007]
[1737173329041,27.39162403,224.84,224.74,0.063]
[1737173329042,20.0,224.81,224.74,0.063]
[1737173329337,0.83438887,224.8,224.62,17.790203]
[1737173329631,27.39162403,224.64,224.55,6.64]
[1737173329840,5.28288887,224.8,224.54,17.796039]
[1737173329841,27.39162403,224.56,224.54,17.796039]
[1737173330011,27.39162403,224.56,224.43,0.063]
[1737173330340,27.39162403,224.54,224.44,6.66]
[1737173330646,0.83519742,224.72,224.47,27.39162403]
[1737173330823,27.39162403,224.58,224.47,27.39162403]
[1737173331131,27.39162403,224.64,224.45,13.48]
[1737173331308,27.39162403,224.64,224.44,6.66]
[1737173331510,0.83462244,224.63,224.49,27.39162403]
[1737173331825,27.39162403,224.73,224.54,0.063]
[1737173332523,27.39162403,224.73,224.58,20.0]
[1737173332722,27.39162403,224.66,224.59,20.0]
[1737173333107,27.39162403,224.7,224.63,20.0]
[1737173333310,27.39162403,224.72,224.65,20.0]
[1737173333508,0.83455251,224.83,224.54,0.063]
[1737173333509,27.39162403,224.66,224.54,0.063]
[1737173333737,27.39162403,224.64,224.55,27.39162403]
[1737173334035,27.39162403,224.64,224.58,20.0]
[1737173334412,27.39162403,224.66,224.58,20.0]
[1737173334937,27.39162403,224.68,224.57,27.39162403]
[1737173335135,27.39162403,224.68,224.6,20.0]
[1737173335335,27.39162403,224.73,224.6,20.0]
[1737173335336,27.39162403,224.66,224.6,20.0]
[1737173335539,0.83454714,224.72,224.54,0.063]
[1737173335746,27.39162403,224.55,224.54,0.063]
[1737173336119,0.83454714,224.72,224.54,0.063]
[1737173336120,27.39162403,224.57,224.54,0.063]
[1737173337038,0.83454714,224.72,224.54,0.063]
[1737173337039,27.39162403,224.59,224.55,20.0]
[1737173337225,27.39162403,224.72,224.6,20.0]
[1737173337550,27.39162403,224.72,224.54,0.063]
[1737173337551,27.39162403,224.63,224.54,0.063]
[1737173337726,27.39162403,224.61,224.54,0.063]
[1737173337923,0.83468835,224.71,224.54,0.063]
[1737173338337,20.0,224.69,224.54,0.063]
[1737173338521,0.83487445,224.68,224.54,0.063]
[1737173339146,0.83487445,224.68,224.41,17.796039]
[1737173339147,54.78324806,224.55,224.41,17.796039]
[1737173339337,27.39162403,224.44,224.3,6.84]
[1737173339517,4.4523,224.6,224.36,27.39162403]
[1737173339714,27.39162403,224.46,224.39,17.796039]
[1737173339944,27.39162403,224.44,224.32,27.39162403]
[1737173340344,27.39162403,224.44,224.35,17.812089]
[1737173340545,27.39162403,224.44,224.31,6.84]
[1737173340848,27.39162403,224.44,224.31,34.23162403]
[1737173341141,27.39162403,224.44,224.3,17.815775]
[1737173341142,54.78324806,224.44,224.3,17.815775]
[1737173341346,54.78324806,224.44,224.2,0.063]
[1737173341347,27.39162403,224.44,224.27,27.39162403]
[1737173341648,27.39162403,224.44,224.3,17.815667]
[1737173341823,27.39162403,224.4,224.3,17.815667]
[1737173342021,27.39162403,224.51,224.34,20.0]
[1737173342221,27.39162403,224.44,224.36,20.0]
[1737173342421,27.39162403,224.5,224.42,20.0]
[1737173342628,27.39162403,224.54,224.48,20.0]
[1737173343050,27.39162403,224.49,224.37,27.39162403]
[1737173343242,27.39162403,224.44,224.33,27.39162403]
[1737173343544,27.39162403,224.41,224.36,6.92]
[1737173343725,27.39162403,224.46,224.36,6.92]
[1737173343925,27.39162403,224.4,224.36,6.92]
[1737173344761,27.39162403,224.38,224.36,6.92]
[1737173344948,27.39162403,224.38,224.04,48.083]
[1737173345247,27.39162403,224.3,224.22,17.821614]
[1737173345631,27.39162403,224.26,224.22,17.821614]
[1737173345936,27.39162403,224.24,224.15,6.94]
[1737173346132,27.39162403,224.22,224.14,6.94]
[1737173346325,27.39162403,224.22,224.04,75.47462403]
[1737173346529,27.39162403,224.22,224.13,20.0]
[1737173347044,27.39162403,224.22,224.12,6.94]
[1737173347448,27.39162403,224.13,224.04,0.063]
[1737173347637,0.83642689,224.28,224.1,27.39162403]
[1737173347842,27.39162403,224.28,224.2,20.0]
[1737173348041,0.83627308,224.41,224.21,6.96]
[1737173348348,5.29247308,224.41,224.21,6.96]
[1737173348653,27.39162403,224.32,224.26,20.0]
[1737173348863,27.39162403,224.3,224.21,6.96]
[1737173349229,27.39162403,224.26,224.21,6.96]
[1737173349632,27.39162403,224.32,224.26,20.0]
[1737173349829,27.39162403,224.26,224.2,17.82394]
[1737173350033,27.39162403,224.26,224.1,27.39162403]
[1737173350034,27.39162403,224.21,224.13,6.98]
[1737173350235,27.39162403,224.19,224.13,6.98]
[1737173350455,27.39162403,224.25,224.17,20.0]
[1737173350862,27.39162403,224.23,224.17,20.0]
[1737173351040,27.39162403,224.23,224.18,6.96]
[1737173351246,27.39162403,224.23,224.21,20.0]
[1737173352147,27.39162403,224.22,224.14,17.825417]
[1737173352347,27.39162403,224.16,224.04,7.043]
[1737173352667,27.39162403,224.1,224.04,17.888417]
[1737173353042,27.39162403,224.1,224.04,0.063]
[1737173353365,27.39162403,224.1,224.05,6.98]
[1737173353540,0.83654072,224.32,224.11,20.0]
[1737173353739,27.39162403,224.17,224.06,45.22010203]
[1737173353936,27.39162403,224.17,224.08,27.39162403]
[1737173354147,27.39162403,224.17,224.06,17.828478]
[1737173354555,27.39162403,224.17,224.1,20.0]
[1737173354755,27.39162403,224.23,224.16,20.0]
[1737173355065,27.39162403,224.18,224.08,7.06]
[1737173355250,27.39162403,224.16,224.08,7.06]
[1737173356264,27.39162403,224.14,224.08,7.06]
[1737173356467,27.39162403,224.29,224.08,7.06]
[1737173356468,27.39162403,224.1,224.08,7.06]
[1737173357252,27.39162403,224.09,224.04,0.063]
[1737173357571,4.463,224.06,223.81,48.143]
[1737173357775,27.39162403,223.92,223.82,8.55333981]
[1737173358071,27.39162403,223.94,223.85,27.39162403]
[1737173358237,27.39162403,223.96,223.87,27.39162403]
[1737173358444,27.39162403,223.98,223.89,27.39162403]
[1737173358854,27.39162403,223.98,223.91,7.143]
[1737173359056,27.39162403,223.97,223.91,0.063]
[1737173359368,27.39162403,223.98,223.88,26.95462403]
[1737173359568,27.39162403,224.0,223.9,27.39162403]
[1737173360075,27.39162403,223.96,223.82,17.828478]
[1737173360371,27.39162403,223.94,223.84,27.39162403]
[1737173361076,27.39162403,223.96,223.86,27.39162403]
[1737173361255,27.39162403,223.96,223.89,20.0]
[1737173361767,27.39162403,223.94,223.84,27.39162403]
[1737173362066,27.39162403,224.0,223.93,20.0]
[1737173362268,27.39162403,224.04,223.95,20.0]
[1737173362860,27.39162403,224.08,224.02,20.0]
[1737173363178,27.39162403,224.1,224.03,7.14]
[1737173363681,27.39162403,224.04,223.93,27.39162403]
[1737173363849,27.39162403,224.06,223.95,27.39162403]
[1737173364039,27.39162403,224.08,223.97,27.39162403]
[1737173364243,27.39162403,224.0,223.9,34.53162403]
[1737173364477,27.39162403,224.0,223.9,7.14]
[1737173364654,27.39162403,224.0,223.91,20.0]
[1737173364851,27.39162403,223.97,223.9,7.16]
[1737173365360,27.39162403,223.99,223.9,7.16]
[1737173365565,27.39162403,224.01,223.9,34.55162403]
[1737173366373,27.39162403,224.01,223.93,20.0]
[1737173366551,27.39162403,223.95,223.83,27.39162403]
[1737173366751,27.39162403,223.97,223.85,27.39162403]
[1737173366946,27.39162403,223.95,223.85,27.39162403]
[1737173367260,27.39162403,223.97,223.88,20.0]
[1737173367566,27.39162403,223.95,223.83,27.39162403]
[1737173368375,27.39162403,223.88,223.78,27.39162403]
[1737173368680,27.39162403,223.9,223.8,45.24691403]
[1737173368979,27.39162403,223.9,223.88,0.063]
[1737173369346,27.39162403,223.92,223.88,0.063]
[1737173369569,27.39162403,223.9,223.88,0.063]
[1737173369771,27.39162403,223.9,223.83,19.98184584]
[1737173369948,27.39162403,223.84,223.67,1.44084502]
[1737173370141,27.39162403,223.82,223.65,0.063]
[1737173370370,27.39162403,223.66,223.65,0.063]
[1737173371262,54.78324806,223.66,223.65,0.063]
[1737173371468,54.78324806,223.66,223.6,0.063]
[1737173371694,27.39162403,223.62,223.6,0.063]
[1737173372290,28.23031348,223.62,223.57,0.063]
[1737173372493,28.23031348,223.62,223.5,0.063]
[1737173372494,54.78324806,223.58,223.5,0.063]
[1737173372793,27.39162403,223.55,223.5,0.063]
[1737173372961,54.78324806,223.55,223.5,0.063]
[1737173373162,27.39162403,223.55,223.5,0.063]
[1737173373686,27.39162403,223.51,223.5,0.063]
[1737173374066,0.83871831,223.61,223.5,0.063]
[1737173374265,27.39162403,223.56,223.5,0.063]
[1737173374810,27.39162403,223.58,223.51,20.0]
[1737173374971,38.74842403,223.74,223.51,20.0]
[1737173375294,38.74842403,223.74,223.5,0.063]
[1737173375467,27.39162403,223.63,223.5,0.063]
[1737173375666,27.39162403,223.58,223.51,27.26]
[1737173375894,27.39162403,223.6,223.54,20.0]
[1737173376068,27.39162403,223.62,223.54,20.0]
[1737173376268,27.39162403,223.6,223.54,20.0]
[1737173377376,27.39162403,223.6,223.5,0.063]
[1737173377377,27.39162403,223.55,223.53,7.24]
[1737173378489,27.39162403,223.57,223.53,7.24]
[1737173379475,27.39162403,223.59,223.53,7.24]
[1737173379984,27.39162403,223.61,223.56,20.0]
[1737173380482,27.39162403,223.65,223.58,20.0]
[1737173380883,27.39162403,223.71,223.64,20.0]